Cogmind - Beta 14 @@@ ROGUE MODE // 2024.10.02 @ 17:29:31 Player: H3-RMN Result: Destroyed by B-75 Beast with Heavy Plasma Cannon Performance ------------- Evolutions (5) 2500 Regions Visited (6) 1200 Robots Destroyed (114) 570 Value Destroyed (4069) 4069 Prototype IDs (31) 620 Alien Tech Used (0) 0 Bonus (3028) 3028 TOTAL SCORE: 11987 Bonus ------- High Alert Combat Kills 457 Follower Combat Kills 271 Delivered SUBCON Basin 2000 Registered with UFD 300 Cogmind --------- Core Integrity 0/1000 Matter 270/300 Energy 75/100 System Corruption 29% Temperature Cool (12) Movement Hovering (56) Location -5/Extension Parts ------- > --- POWER (2) -------- (None) > --- PROPULSION (6) --- Advanced Myomer Leg Backup Propulsion I Cooled Gravmag System > --- UTILITY (7) ------ Improved Sensor Array Experimental Signal Interpreter Makeshift Hacking Suite Makeshift Hacking Suite Improved Hacking Suite Tech Extrapolator Long-range Tractor Beam > --- WEAPON (2) ------- Compact Linear Accelerator > --- INVENTORY (5) ---- Experimental Energy Well (600) Authchip [Device] Authchip [Armor] Mapping Drone Bay (3/3) Compact Linear Accelerator Peak State ------------ > --- POWER ------------ Cooled Ion Engine Light Angular Momentum Engine Light Antimatter Reactor > --- PROPULSION ------- Flexi-carbon Leg Myomer Leg Advanced Myomer Leg Advanced Myomer Leg High-density Centrium Leg High-density Centrium Leg > --- UTILITY ---------- Advanced Cooling System Huge Storage Unit Experimental Signal Interpreter Makeshift Hacking Suite Improved Hacking Suite Tech Extrapolator Power Bank > --- WEAPON ----------- Heavy Hardcell Cannon > --- INVENTORY -------- Flexi-carbon Leg Experimental Energy Well Experimental Energy Well Improved Sensor Array Makeshift Hacking Suite Makeshift Hacking Suite Makeshift Hacking Suite Authchip [Device] Authchip [Armor] Authchip [Armor] Authchip [Weapon] Mapping Drone Bay Long-range Proton Cannon Powered Cannon Compact Linear Accelerator Compact Linear Accelerator Compact Linear Accelerator Compact Linear Accelerator Compact Linear Accelerator CPS Tube Multitool Centrium Greatsword PL-3XN's Ring of Power [Rating: 135] Favorites ----------- Power Cooled Ion Engine Engine Cooled Ion Engine Power Core Micro Fission Core Reactor Cold Fusion Reactor Propulsion Light Treads Treads Light Treads Leg Advanced Myomer Leg Wheel Subdweller Monowheel Hover Unit Backup Propulsion VII Flight Unit Field Propulsion Drive Utility Huge Storage Unit Device Power Bank Storage Huge Storage Unit Processor Experimental Signal Interpreter Hackware Makeshift Hacking Suite Protection Light Armor Plating Weapon Subdweller Beam Cannon Energy Gun Riot Gun Energy Cannon Subdweller Beam Cannon Ballistic Gun Subdweller Machine Gun Ballistic Cannon Heavy Hardcell Cannon Launcher Subdweller Shrapnel Launcher Special Weapon Multitool Impact Weapon Gravity Flail Slashing Weapon Centrium Greatsword Special Melee Weapon Datajack Build | -11 -10 -10 -7 -7 -5 -5 ------- Run | Yrd Mat Sub Rec Scr Fac Ext Slots Evolved 10 | . . . . . 10 . Power 1 | . . . . . 1 . Propulsion 4 | . . . . . 4 . Utility 5 | . . . . . 5 . Weapon . | . . . . . . . Parts Attached 152 | 7 13 32 2 6 92 . Power 17 | 1 1 6 . . 9 . Engine 9 | 1 1 6 . . 1 . Core 2 | . . . . . 2 . Reactor 6 | . . . . . 6 . Propulsion 41 | 2 3 8 2 . 26 . Treads 7 | 1 2 2 1 . 1 . Leg 16 | . . . . . 16 . Wheel 9 | 1 1 6 1 . . . Hover 8 | . . . . . 8 . Flight 1 | . . . . . 1 . Utility 50 | 2 5 5 . . 38 . Device 28 | 1 3 3 . . 21 . Storage 7 | 1 2 1 . . 3 . Processor 4 | . . . . . 4 . Hackware 10 | . . . . . 10 . Protection 1 | . . 1 . . . . Artifact . | . . . . . . . Weapon 44 | 2 4 13 . 6 19 . Energy Gun 7 | 1 1 5 . . . . Energy Cannon 11 | . 2 1 . 2 6 . Ballistic Gun 5 | 1 . 2 . 2 . . Ballistic Cannon 11 | . . 1 . . 10 . Launcher 3 | . . 3 . . . . Special Weapon 3 | . . 1 . 2 . . Impact Weapon 1 | . . . . . 1 . Slashing Weapon 2 | . . . . . 2 . Piercing Weapon . | . . . . . . . Special Melee Weapon 1 | . 1 . . . . . Unidentified Prototypes 12 | . 1 . . 1 10 . Corrupted Parts 7 | . . . . 1 6 . System Corruption 14 | . . . . 1 13 . Parts Lost 30 | . 1 3 . . 26 . Power 8 | . . . . . 8 . Propulsion 11 | . 1 1 . . 9 . Utility 6 | . . 2 . . 4 . Weapon 5 | . . . . . 5 . Highest Loss Streak 9 | . 1 1 . . 9 . To Critical Strikes 1 | . . . . . 1 . Average Slot Usage (%) 95 | . 99 97 100 97 80 64 Engine 31 | . 14 18 40 40 12 . Treads 9 | . 14 13 10 10 1 . Leg 2 | . . . . . 13 5 Wheel 7 | . 13 12 10 7 . . Device 9 | . 13 4 10 10 8 11 Storage 9 | . 14 13 10 10 4 . Processor 1 | . . . . . 10 11 Hackware 1 | . . . . . 8 17 Energy Gun 1 | . 2 10 . . . . Energy Cannon 9 | . 22 9 10 9 3 . Ballistic Gun 2 | . 2 4 . 2 . . Launcher 5 | . . 1 10 7 . . Peak Build Rating 135 | 9 15 49 49 44 135 65 Average Rating 42 | 6 13 21 44 36 92 65 On Entrance 30 | . 9 15 49 36 37 65 Naked Turns . | . . . . . . . Heaviest Build 134 | 11 57 128 128 128 134 8 Greatest Support 169 | 20 16 40 20 20 169 16 Greatest Overweight (x) 17 | 2 5 6 6 6 17 . Average Overweight (x) 4 | . 3 4 6 5 1 . Largest Inventory Capacity 25 | 8 20 25 25 25 25 5 Average Capacity 23 | 7 19 21 25 25 23 5 Most Carried 25 | 8 20 25 25 25 25 5 Average Carried 23 | 4 17 21 22 24 22 5 Final Capacity 25 | 8 20 25 25 25 5 5 Final Carried 25 | 8 19 25 22 25 5 5 Class Distribution -------------------- 89% | Mutant 9% | Hacker-Mutant Dominant Class ---------------- Mutant | -10/Materials Mutant | -10/Subcaves Mutant | -7/Recycling Mutant | -7/Scraptown Hacker-Mutant | -5/Factory Hacker-Mutant | -5/Extension Resources | -11 -10 -10 -7 -7 -5 -5 ----------- Run | Yrd Mat Sub Rec Scr Fac Ext Matter Collected 3316 | 276 242 320 127 10 2341 . Remotely 524 | . . . . . 524 . Salvage Created 4320 | 101 971 530 . . 2718 . Parts 205 | 10 43 37 . . 115 . Haulers Intercepted 4 | . 2 . . . 2 . Recyclers Shooed 3 | . 1 . . . 2 . Parts Field Recycled . | . . . . . . . Retrieved Matter . | . . . . . . . Parts Self-Destructed 9 | . . 9 . . . . Prevented . | . . . . . . . Kills | -11 -10 -10 -7 -7 -5 -5 ------- Run | Yrd Mat Sub Rec Scr Fac Ext Combat Hostiles Destroyed 77 | . 16 13 . . 48 . Melee 8 | . . . . . 8 . Guns 1 | . 1 . . . . . Cannons 55 | . 15 6 . . 34 . AOE 7 | . . 6 . . 1 . Classes Destroyed 17 | 2 7 3 . . 5 . Worker 7 | . 1 . . . 6 . Builder 3 | . . . . . 3 . Tunneler 3 | 2 1 . . . . . Hauler 4 | . 2 . . . 2 . Recycler 7 | 1 3 . . . 3 . Mechanic 2 | . 1 . . . 1 . Operator 4 | . 3 . . . 1 . Watcher 7 | . 3 . . . 4 . Swarmer 13 | . 6 . . . 7 . Grunt 31 | . 10 2 . . 19 . Duelist 1 | . . . . . 1 . Sentry 5 | . . 1 . . 4 . Specialist 4 | . . . . . 4 . Hunter 3 | . . . . . 3 . Programmer 10 | . . . . . 10 . Artisan 1 | . . 1 . . . . Subdweller 10 | . . 10 . . . . Best Kill Streak 16 | 2 5 4 . . 16 . Combat Bots Only 13 | . 3 4 . . 13 . Max Kills in Single Turn 5 | 1 2 2 . . 5 . Gunslinging . | . . . . . . . Exploded 2 | . . 2 . . 1 . Melee 1 | . . . . . 1 . Uniques/NPCs Destroyed . | . . . . . . . Combat | -11 -10 -10 -7 -7 -5 -5 -------- Run | Yrd Mat Sub Rec Scr Fac Ext Hostile Shots Fired 622 | . 75 39 . . 506 2 Missed 199 | . 28 10 . . 161 . Damage Taken 7451 | . 476 771 . . 6152 52 Core 1262 | . 78 157 . . 995 32 Absorbed by Shields 281 | . . . . . 281 . Core Remaining (%) 53 | 100 . . . 6 . . Volleys Fired 286 | 6 68 45 . . 167 . Largest 2 | 2 2 2 . . 2 . Hottest 166 | 60 136 136 . . 166 . Shots Fired 457 | 12 136 66 . . 243 . Gun 65 | 12 24 16 . . 13 . Cannon 385 | . 112 43 . . 230 . Launcher 6 | . . 6 . . . . Special 1 | . . 1 . . . . Kinetic 189 | 6 12 11 . . 160 . Thermal 239 | 6 124 44 . . 65 . Explosive . | . . . . . . . Electromagnetic 29 | . . 11 . . 18 . Robot Hit Streak 20 | 10 20 14 . . 10 . Robot Miss Streak 4 | . 4 3 . . 4 . Penetration Max . | . . . . . . . Secondary Targets . | . . . . . . . Shots Hit Robots 303 | 10 86 35 . . 172 . Core Hits 141 | 4 37 21 . . 79 . Critical Kills 4 | . . . . . 4 . Critical Parts Destroyed . | . . . . . . . Critical Strikes 16 | . . . . . 16 . Meltdown 4 | . . . . . 4 . Blast 8 | . . . . . 8 . Sever 4 | . . . . . 4 . Melee Attacks 33 | . 1 . . . 32 . Impact . | . . . . . . . Slashing 32 | . . . . . 32 . Piercing . | . . . . . . . Sneak Attacks 1 | . 1 . . . . . Combat Hostiles . | . . . . . . . Follow-up Attacks . | . . . . . . . Damage Inflicted 12461 | 97 1682 1192 . . 9490 . Guns 624 | 97 186 187 . . 154 . Cannons 9212 | . 1496 431 . . 7285 . Explosions 1278 | . . 562 . . 716 . Melee 1255 | . . . . . 1255 . Ramming 92 | . . 12 . . 80 . Kinetic 6245 | 31 83 581 . . 5550 . Thermal 3520 | 66 1599 454 . . 1401 . Explosive 716 | . . . . . 716 . Electromagnetic 633 | . . 145 . . 488 . Impact . | . . . . . . . Slashing 1255 | . . . . . 1255 . Piercing . | . . . . . . . Highest Corruption 29 | . . . . 1 29 29 Average Corruption 13 | . . . . 1 13 29 Corruption Purged . | . . . . . . . Corruption Blocked . | . . . . . . . Effects 107 | . . . . . 105 2 Message Errors 19 | . . . . . 19 . Matter Fused 23 | . . . . . 22 1 Heat Flow Errors 11 | . . . . . 11 . Energy Discharges 11 | . . . . . 10 1 Parts Rejected 3 | . . . . . 3 . Parts Fused 2 | . . . . . 2 . Data Loss (minor) 12 | . . . . . 12 . Data Loss (major) 6 | . . . . . 6 . Misfires 8 | . . . . . 8 . Alerts 2 | . . . . . 2 . Misdirections 2 | . . . . . 2 . Weapon Failures 8 | . . . . . 8 . Overload Shots . | . . . . . . . Overflow Damage 786 | . 26 . . . 760 . Projectiles 574 | . 26 . . . 548 . Explosions 97 | . . . . . 97 . Melee 115 | . . . . . 115 . Knockbacks 32 | . . . . . 32 . Impact 1 | . . . . . 1 . Kinetic 29 | . . . . . 29 . Secondary 2 | . . . . . 2 . Self-Inflicted Damage 159 | . . 66 . . 93 . Shots 3 | . . 2 . . 1 . Rammed 1 | . . 1 . . . . Targets Rammed 3 | . . 1 . . 2 . Kicked 2 | . . . . . 2 . Crushed . | . . . . . . . Highest Temperature 372 | 40 199 90 . . 372 . Average Temperature 90 | 18 90 35 . . 108 . Received Heat Transfer 1370 | . 174 96 . . 1088 12 Effects 2 | . . . . . 2 . Shutdowns 1 | . . . . . 1 . Matter Decay 1 | . . . . . 1 . Siege Activations . | . . . . . . . Robots Corrupted 3 | . . 1 . . 2 . Combat Hostiles 3 | . . 1 . . 2 . Parts Fried 3 | . . 1 . . 2 . Impact Corruptions 1 | . . . . . 1 . Robots Melted 4 | . . . . . 4 . Combat Hostiles 3 | . . . . . 3 . Parts Melted 19 | . 4 . . . 15 . Heat Transferred 5235 | 150 2815 753 . . 1517 . Parts Sabotaged 3 | . . . . . 3 . Parts Stolen . | . . . . . . . Parts Stripped . | . . . . . . . Power Chain Reactions 1 | . . 1 . . . . Alert | -11 -10 -10 -7 -7 -5 -5 ------- Run | Yrd Mat Sub Rec Scr Fac Ext Peak Influence 1298 | 15 384 . 102 . 1298 650 Initial 635 | . 9 . . . . 635 Average 174 | 6 202 . 16 . 241 635 Maximum Alert Level 4 | . 1 . . . 4 2 Low Security (%) 65 | 100 41 . 100 . 58 . Level 1 24 | . 58 . . . 23 . Level 2 5 | . . . . . 8 100 Level 3 2 | . . . . . 4 . Level 4 2 | . . . . . 4 . Level 5 . | . . . . . . . High Security . | . . . . . . . Max Security . | . . . . . . . Squads Dispatched 22 | . 4 . . . 18 . Investigation 6 | . 2 . . . 4 . Extermination 5 | . . . . . 5 . Reinforcement 9 | . 2 . . . 7 . Assault 1 | . . . . . 1 . Garrison 1 | . . . . . 1 . Intercept . | . . . . . . . Searches Triggered . | . . . . . . . Construction Impeded 1 | . . . . . 1 . Haulers Reinforced 1 | . . . . . 1 . Active Scanning Responses . | . . . . . . . Cargo Convoy Interrupts 1 | . . . . . 1 . Stealth | -11 -10 -10 -7 -7 -5 -5 --------- Run | Yrd Mat Sub Rec Scr Fac Ext Distress Signals 2 | . . . . . 2 . Communications Jammed . | . . . . . . . Distress Signals . | . . . . . . . Times Spotted 124 | . 30 15 . . 76 3 Peak Tracking Total 11 | . 3 3 . . 11 1 Tactical Retreats 9 | . 2 1 . . 6 . Traps | -11 -10 -10 -7 -7 -5 -5 ------- Run | Yrd Mat Sub Rec Scr Fac Ext Traps Triggered 4 | . 2 1 . . 1 . Indirectly . | . . . . . . . Trap Hack Attempts 23 | . 23 . . . . . Triggered 1 | . 1 . . . . . Disarmed 1 | . 1 . . . . . Reprogrammed 4 | . 4 . . . . . Reused . | . . . . . . . Traps Extracted . | . . . . . . . Installed . | . . . . . . . Triggered 2 | . . . . . 2 . Machines | -11 -10 -10 -7 -7 -5 -5 ---------- Run | Yrd Mat Sub Rec Scr Fac Ext Machines Disabled 7 | . 1 1 . . 5 . Max in Single Turn 1 | . 1 1 . . 1 . Machines Repaired . | . . . . . . . Machines Dismantled . | . . . . . . . Machines Sabotaged . | . . . . . . . Overloaded Fab Kills . | . . . . . . . Hacking | -11 -10 -10 -7 -7 -5 -5 --------- Run | Yrd Mat Sub Rec Scr Fac Ext Machines Accessed 29 | . 6 3 7 3 10 . Terminals 11 | . 5 . 4 . 2 . Fabricators 2 | . . . . . 2 . Repair Stations 2 | . . . . . 2 . Recycling Units 5 | . 1 . 3 . 1 . Scanalyzers 2 | . . . . . 2 . Garrison Access 1 | . . . . . 1 . Total Hacks 87 | . 15 4 16 15 37 . Successful 63 | . 11 4 10 15 23 . Failed 24 | . 4 . 6 . 14 . Catastrophic . | . . . . . . . Database Lockouts . | . . . . . . . Manual 28 | . 10 . 11 . 7 . Terminals 28 | . 14 . 8 . 6 . Fabricators 8 | . . . . . 8 . Repair Stations 7 | . . . . . 7 . Recycling Units 11 | . 1 . 8 . 2 . Scanalyzers 12 | . . . . . 12 . Garrison Access 2 | . . . . . 2 . Terminal Hacks 25 | . 4 4 1 15 1 . Record 16 | . . 1 . 15 . . Robot Analysis 2 | . 2 . . . . . Prototype ID Bank 1 | . 1 . . . . . Open Door 1 | . . 1 . . . . Unreport Threat 1 | . . . . . 1 . Zone Layout 2 | . 1 . 1 . . . Derelict Proto ID Bank 1 | . . 1 . . . . Release Object 1 | . . 1 . . . . Fabricator Hacks 6 | . . . . . 6 . Load Schematic 3 | . . . . . 3 . Build 3 | . . . . . 3 . Repair Station Hacks 2 | . . . . . 2 . Scan Component 1 | . . . . . 1 . Refit 1 | . . . . . 1 . Recycling Unit Hacks 5 | . 1 . 3 . 1 . Report Inventory 5 | . 1 . 3 . 1 . Scanalyzer 10 | . . . . . 10 . Insert Component 5 | . . . . . 5 . Analyze 5 | . . . . . 5 . Garrison Access Hacks . | . . . . . . . Unauthorized Hacks 15 | . 6 . 6 . 3 . Terminals 10 | . 6 . 3 . 1 . Botnet 2 | . 1 . . . 1 . Skim 8 | . 5 . 3 . . . Fabricators 1 | . . . . . 1 . Haulers 1 | . . . . . 1 . Repair Stations 1 | . . . . . 1 . Recycling Units 3 | . . . 3 . . . Tunnel 3 | . . . 3 . . . Scrapoids 1 | . . . . . 1 . Scanalyzers . | . . . . . . . Garrison Access . | . . . . . . . Data Cores Recovered 2 | . 2 . . . . . Used . | . . . . . . . Hacking Detections 18 | . 5 . 5 . 8 . Full Trace Events 4 | . . . 1 . 3 . Feedback Events 2 | . . . . . 2 . Corruption 1 | . . . . . 1 . Hackware Fried 1 | . . . . . 1 . Feedback Blocked . | . . . . . . . Robot Schematics Acquired . | . . . . . . . Robots Built . | . . . . . . . Authchips . | . . . . . . . Time . | . . . . . . . Total Robot Build Rating . | . . . . . . . Part Schematics Acquired 12 | . . . . . 11 1 Parts Built 3 | . . . . . 3 . Authchips 3 | . . . . . 3 . Time 137 | . . . . . 137 . Total Part Build Rating 14 | . . . . . 14 . Parts Repaired . | . . . . . . . Time . | . . . . . . . Parts Recycled . | . . . . . . . Recycled Matter . | . . . . . . . Retrieved Matter . | . . . . . . . Retrieved Components . | . . . . . . . Parts Scanalyzed 5 | . . . . . 5 . Part Schematics Acquired 4 | . . . . . 4 . Parts Damaged . | . . . . . . . Bothacking | -11 -10 -10 -7 -7 -5 -5 ------------ Run | Yrd Mat Sub Rec Scr Fac Ext Used RIF Installer . | . . . . . . . Robots Hacked 1 | . 1 . . . . . Non-combat 1 | . 1 . . . . . Combat . | . . . . . . . Robot Hacks Applied 1 | . 1 . . . . . find_recycling 1 | . 1 . . . . . Relay Couplers Released . | . . . . . . . Fabnet Peak Effective % . | . . . . . . . Robots Rewired . | . . . . . . . Allies Hacked . | . . . . . . . Hacks Repelled . | . . . . . . . Allies | -11 -10 -10 -7 -7 -5 -5 -------- Run | Yrd Mat Sub Rec Scr Fac Ext Total Allies 5 | . . . . . 5 . Largest Group 5 | . . . . . 5 . Highest-Rated Group 235 | . . . . . 235 . Highest-Rated Ally 47 | . . . . . 47 . Total Orders 3 | . . . . . 3 . RETURN 3 | . . . . . 3 . Ally Attacks 31 | . . . . . 31 . Total Damage 889 | . . . . . 889 . Kills 9 | . . . . . 9 . Allies Corrupted . | . . . . . . . Allies Melted . | . . . . . . . Intel | -11 -10 -10 -7 -7 -5 -5 ------- Run | Yrd Mat Sub Rec Scr Fac Ext Robot Analysis Total 2 | . 2 . . . . . Derelict Logs Recovered 8 | . . 3 . 5 . . Drone Launches 3 | . . . . . 3 . Drone Recoveries 3 | . . . . . 3 . Exploration | -11 -10 -10 -7 -7 -5 -5 ------------- Run | Yrd Mat Sub Rec Scr Fac Ext Turns Passed 19800 | 97 1349 2000 1523 11830 2952 49 Spaces Moved 5618 | 59 598 1041 867 1882 1088 83 Core 7 | 7 . . . . . . Treads 2001 | 2 . 30 . 1841 128 . Legs 567 | . . . . . 567 . Wheels 2567 | 50 598 1011 867 41 . . Hover 476 | . . . . . 393 83 Flight . | . . . . . . . Fastest Speed 50 | 50 100 130 170 170 60 56 Average Speed 319 | 100 143 154 170 627 193 58 Slowest Speed 1080 | 160 155 240 170 640 1080 60 Overloaded Moves 37 | . . . . . . 37 Propulsion Burnouts . | . . . . . . . Robots Hopped . | . . . . . . . Cave-ins Triggered . | . . . . . . . Exploration Rate (%) 51 | 4 84 68 66 90 31 20 Regions Visited 6 Branch Regions 4 Pre-discovered Areas 8 | . 2 2 3 1 . . Known Exits Taken 3 | . 1 1 . . 1 . Unknown Exits Taken 3 | 1 . . 1 1 . . Scrap Searched 9 | . . 3 . 6 . . Spaces Dug 28 | . . 17 . . 11 . Terrain Destroyed 140 | . . 69 . . 71 . Melee . | . . . . . . . Projectile 55 | . . 7 . . 48 . AOE 85 | . . 62 . . 23 . Terrain Rammed . | . . . . . . . Walls Destroyed . | . . . . . . . Machines Disabled . | . . . . . . . Actions | -11 -10 -10 -7 -7 -5 -5 --------- Run | Yrd Mat Sub Rec Scr Fac Ext Total 6946 | 84 955 1374 919 1915 1616 83 Wait 603 | 1 224 202 26 3 147 . Move 5613 | 58 597 1041 866 1881 1087 83 Hop . | . . . . . . . Pick Up 111 | 10 18 21 18 11 33 . Fast Attach 64 | 7 3 6 . 2 46 . Attach 44 | . 2 8 . 4 30 . Detach 10 | . 1 1 . 2 6 . Swap 44 | . 8 18 2 . 16 . Drop 113 | 2 10 32 7 12 50 . Fire 286 | 6 68 45 . . 167 . Melee 33 | . 1 . . . 32 . Ram . | . . . . . . . Kick 2 | . . . . . 2 . Crush . | . . . . . . . Escape Stasis . | . . . . . . . Rewire . | . . . . . . . Trap 23 | . 23 . . . . . Miscellaneous . | . . . . . . . Route ------- -11/Scrapyard -10/Materials (discovered 5 exits: *Mat x3 / [*Min] / *Sub) -10/Subcaves (discovered 3 exits: *Mat x2 / *Rec) -7/Recycling (discovered 2 exits: *Fac / *Scr) -7/Scraptown (discovered 2 exits: *Fac x2) -5/Factory -5/Extension History --------- Turn | Location | Event 14 | -11/Scrapyard | Discovered new exit (range 16) 98 | -11/Scrapyard | Entered Materials 309 | -10/Materials | Build established: Mutant 346 | -10/Materials | Discovered new exit (range 12) 927 | -10/Materials | Discovered new exit (range 5) 1206 | -10/Materials | Discovered new exit (range 16) 1219 | -10/Materials | Identified exit to Materials 1219 | -10/Materials | Identified exit to Subcaves 1267 | -10/Materials | Learned location of Mines (-8) 1304 | -10/Materials | Learned location of 2 exits from Subcaves 1351 | -10/Materials | Learned 4 Subcaves zone layouts 1359 | -10/Materials | Learned location of 2 exits from Subcaves 1360 | -10/Materials | Learned location of Mines (-10) 1366 | -10/Materials | Loaded intel: 4 trap records 1383 | -10/Materials | Learned location of 3 exits from Materials 1408 | -10/Materials | Learned location of 1 exit from Storage 1447 | -10/Materials | Entered Subcaves 1448 | -10/Subcaves | Identified exit to Recycling 1448 | -10/Subcaves | Identified exit to Materials 1498 | -10/Subcaves | Learned location of Zion (-7) 2015 | -10/Subcaves | A swath of the cavern ceiling suddenly collapsed 2161 | -10/Subcaves | Core integrity fell below 50% 2416 | -10/Subcaves | Visited 4L-MR0's lab 2434 | -10/Subcaves | Found Powered Cannon 2647 | -10/Subcaves | A Subdweller sparked back to life 2647 | -10/Subcaves | A Subdweller sparked back to life 2647 | -10/Subcaves | A Subdweller sparked back to life 2650 | -10/Subcaves | Core integrity fell below 20% 2651 | -10/Subcaves | Ambushed by Subdweller buried in earth 2684 | -10/Subcaves | Found Power Bank 2857 | -10/Subcaves | Shifting Twisted Machinery released Sub. Shrapnel Launcher 2865 | -10/Subcaves | Shifting Twisted Machinery released Mak. Leg 3110 | -10/Subcaves | Attached Power Bank, gained temporary slots: Power x3 3119 | -10/Subcaves | Found SUBCON Basin 3322 | -10/Subcaves | Shifting Twisted Machinery released Sub. Beam Cannon 3339 | -10/Subcaves | Shifting Twisted Machinery released Flamer 3447 | -10/Subcaves | Entered Recycling 3731 | -7/Recycling | Discovered new exit (range 20) 4497 | -7/Recycling | Scanned before Scraplab entrance 4523 | -7/Recycling | Entered Scraplab 4967 | -7/Recycling | Discovered new exit (range 3) 4970 | -7/Recycling | Entered Scraptown 5696 | -7/Scraptown | Visited UFD Registry 5696 | -7/Scraptown | Registered with UFD as "Biodrive" 5869 | -7/Scraptown | Visited Abandonware Association 5939 | -7/Scraptown | Learned abandonware demo "REVENGE.EXE" 6093 | -7/Scraptown | Visited Science Testing Area 6189 | -7/Scraptown | Visited Supply Room 6298 | -7/Scraptown | Visited Infowarlord's Domain 6394 | -7/Scraptown | Visited Scrapoid Pod Storage 6541 | -7/Scraptown | Visited Junk Repository 6611 | -7/Scraptown | Visited Junk Cannon Lab 6810 | -7/Scraptown | Visited Chapter 10 7024 | -7/Scraptown | Visited LU-1G1's Boring Crew 7280 | -7/Scraptown | Visited Research Penetration Think Tank 8912 | -7/Scraptown | Visited Cave Peace 9123 | -7/Scraptown | Visited Fellowship of the Rings 10121 | -7/Scraptown | Scanned Subdweller tech in exchange for log data 10134 | -7/Scraptown | Learned Factory interactive machine intel 10141 | -7/Scraptown | Learned location of 1 exit from Proximity Caves 10153 | -7/Scraptown | Learned location of Warlord (-4) 10160 | -7/Scraptown | Learned Research stockpile data 10339 | -7/Scraptown | Visited Spacefarers 10390 | -7/Scraptown | Visited Red Mages 10633 | -7/Scraptown | Visited Symbiants 11107 | -7/Scraptown | Visited TADAMA 11235 | -7/Scraptown | Visited Comm Corps 11613 | -7/Scraptown | Discovered new exit (range 11) 13509 | -7/Scraptown | Found Exp. Signal Interpreter 13978 | -7/Scraptown | Found Prototype Special Weapon 13980 | -7/Scraptown | Identified Junk Cannon 16733 | -7/Scraptown | Discovered new exit (range 5) 16780 | -7/Scraptown | System corruption cleaned by C-Scrubber 16800 | -7/Scraptown | Entered Factory 16800 | -5/Factory | Evolved 10 slots: Power x1, Propulsion x4, Utility x5 16801 | -5/Factory | Loaded intel: 54 interactive machine locations 17189 | -5/Factory | Fabricated Mak. Hacking Suite (x1) 17282 | -5/Factory | Fabricated Mak. Hacking Suite (x1) 17420 | -5/Factory | Lost 3 parts (1p1u1w) 17853 | -5/Factory | System corruption reached 10% 18168 | -5/Factory | Cargo convoy interrupted 18359 | -5/Factory | Found PL-3XN's Ring of Power 18402 | -5/Factory | Build established: Hacker-Mutant 18611 | -5/Factory | Fabricated Mapping Drone Bay (x1) 18925 | -5/Factory | Destroyed 7 combat bots 19319 | -5/Factory | Lost 5 parts (2p3n) 19433 | -5/Factory | Core integrity fell below 50% 19445 | -5/Factory | Mak. Hacking Suite fried by hacking feedback 19486 | -5/Factory | Scrapoids reinforcements arrived? 19496 | -5/Factory | Garrison activated, responded to threat 19500 | -5/Factory | First assault squad dispatched 19547 | -5/Factory | Lost 5 allies 19566 | -5/Factory | Attached Powered Cannon, gained temporary slot: Power 19582 | -5/Factory | Core integrity fell below 20% 19627 | -5/Factory | Lost 9 parts (2p3n2u2w) 19629 | -5/Factory | Destroyed 13 combat bots 19743 | -5/Factory | Discovered new exit (range 15) 19751 | -5/Factory | Identified exit to Extension 19752 | -5/Factory | Entered Extension 19797 | -5/Extension | Spotted B-75 Beast 19800 | -5/Extension | Spotted B-75 Beast 19801 | -5/Extension | Destroyed by B-75 Beast with Heavy Plasma Cannon Last Messages --------------- 19652_ System corrupted: Matter fused (-10). 19668_ System corrupted: IFF burst signal emitted. 19683_ System corrupted: Matter fused (-9). 19701_ System corrupted: Heat flow error (+156). 19733_ O-16 Technician: "IFF HANDSHAKE FAILED. SECURING TERMINAL." 19734_ O-16 Technician uses terminal to summon reinforcements. 19734_ ALERT: Hostiles spotted, dispatching reinforcements to Terminal F005. 19734_ O-16 Technician locks terminal. 19743_ EXIT=FOUND 19747_ System corrupted: Matter fused (-5). 19751_ EXIT=IDENTIFIED: EXTENSION LOCATION=EXTENSION GOAL=ESCAPE 19756_ Tech Extrapolator generates new schematic "0b10 Decoder Chip [Looter]". Influences: Adv. Signal Interpreter, Imp. Signal Interpreter, Exp. Signal Interpreter. 19763_ System corrupted: Matter fused (-6). 19791_ System corrupted: Energy discharge (-27). 19800_ Penetrated by Slug. Map ----- +----------------------------------------------------+ | ?????????????????????????????????????????????????? | | ?????????????????????????????????????????????????? | | ?????????????????????????????????????????????????? | | ?????????????????????????????????????????????????? | | ?????????????????????????????????????????????????? | | ?????????????????????????????????????????????????? | | ?????????????????????????????????????????????????? | | ?????????????????????????????????????????????????? | | ?????????????????????????????????????????????????? | | ?????????????????????????????????????????????????? | | ?????????????????????????????????????????????????? | | ?????????????????????????????????????????????????? | | ?????????????????????????????????????????????????? | | ?????????????????????????????????????????????????? | | ???????????????????????????????#??##?????????????? | | ?????????????????????????????? ###Y##????????????? | | ?????????????????????????????? "" ???????????? | | ?????????????????????????????" " ???????????? | | ????????????????????????????? ??????????? | | ???????????????????????????? ??????????? | | ############################ ??????????? | | t ?????????? | | ?????????? | | ????????? | | ????????? | | k @ ????????? | | ############################ BB BB????????? | | ?????????????????????????????? BB????????? | | ????????????????????????????????? ?????????? | | ???????????????????????????????????? ????????????? | | ?????????????????????????????????????????????????? | | ?????????????????????????????????????????????????? | | ?????????????????????????????????????????????????? | | ?????????????????????????????????????????????????? | | | | | | | | | | | | | | | | | | | | | | | | | | | | | | | | | +----------------------------------------------------+ Best States ------------- Heat Dissipation 102 Coolant Potential 50 Energy Generation 43 Energy Capacity 1210 Matter Stores 300 Matter Capacity 300 Sight Range 21 Robot Scan Range 15 Terrain Scan Range 16 Terrain Scan Density 10 Additional Mass Support 12 Armor Coverage 150 Evasion (%) 55 Target Analysis 6 Recoil Reduction 2 Offensive Hacking 34 Defensive Hacking 10 Authchip Count 13 Item Schematics ----------------- Mak. Hacking Suite | -5/Factory | Extrapolated Mak. Power Source | -5/Factory | Extrapolated 0b10 Decoder Chip [Skirmisher] | -5/Factory | Extrapolated Huge Storage Unit | -5/Factory | Scanalyzed CPS Tube | -5/Factory | Scanalyzed Magnetic Acceleration Cannon | -5/Factory | Scanalyzed Imp. Sensor Array | -5/Factory | Scanalyzed Mak. Coolant Network | -5/Factory | Extrapolated Mapping Drone Bay | -5/Factory | Extrapolated Beamcaster | -5/Factory | Extrapolated Mak. System Shield | -5/Factory | Extrapolated 0b10 Decoder Chip [Looter] | -5/Extension | Extrapolated Robot Schematics ------------------ None Fabricated ------------ Mak. Hacking Suite | x1 | -5/Factory | Authchip Mak. Hacking Suite | x1 | -5/Factory | Authchip Mapping Drone Bay | x1 | -5/Factory | Authchip Alien Tech Used ----------------- None Achievements -------------- None Challenges ------------ None Game ------ Seed ExplosiveEnergyMatter Manual? 0 Play Time 01:49:46 Cumulative 530.1 hours Start 2024.09.29 @ 15:23:25 End 2024.10.02 @ 17:29:31 Sessions 5 Manual Loads 0 Difficulty Rogue Special Mode None Game No. 202 Rogue 198 Adventurer 4 Explorer 0 Win Type - Total 7 Types 4/1/0/1/0/1/0/0/0 Lore% 88 Gallery% 91 Achievement% 87 Wizard Run 0 Options --------- Layout 0 ASCII 0 Keyboard 0 Movement Numpad Keybinds 0 Fullscreen 2 Font 18/CogNarrow Map View 76x50 Zoom Use 0% Tactical HUD 1 Map Filters NONE Filters NONE Steam 1 RUN: b3965964-8ce4-4861-afc7-ffc942a72673